fUST/lending_fUST_20260110
["ID","MTS","AMOUNT","RATE_DAILY","PERIOD"]
[401156452,1767989447704,-528.82001358,0.00030901,2]
[401156453,1767989447716,-528.82001358,0.00030901,2]
[401156454,1767989447730,-528.82001358,0.00030901,2]
[401156455,1767989447740,-528.82001358,0.00030901,2]
[401156456,1767989447750,-528.82001358,0.00030901,2]
[401156457,1767989447760,-528.82001358,0.00030901,2]
[401156458,1767989447771,-528.82001358,0.00030901,2]
[401156459,1767989447783,-528.82001358,0.00030901,2]
[401156460,1767989447793,-528.82001358,0.00030901,2]
[401156461,1767989447805,-528.82001358,0.00030901,2]
[401156462,1767989447815,-528.82001358,0.00030901,2]
[401156463,1767989447826,-528.82001358,0.00030901,2]
[401156464,1767989447839,-528.82001358,0.00030901,2]
[401156465,1767989447851,-528.82001358,0.00030901,2]
[401156466,1767989447864,-528.82001358,0.00030901,2]
[401156467,1767989447875,-528.82001358,0.00030901,2]
[401156468,1767989447885,-528.82001358,0.00030901,2]
[401156469,1767989447895,-528.82001358,0.00030901,2]
[401156470,1767989447906,-250.0,0.00030902,2]
[401156471,1767989447915,-250.0,0.00030902,2]
[401156472,1767989447925,-250.0,0.00030902,2]
[401156473,1767989447934,-2312.83697232,0.00030902,2]
[401156474,1767989447945,-250.0,0.00030902,2]
[401156475,1767989447954,-250.0,0.00030902,2]
[401156476,1767989447964,-250.0,0.00030902,2]
[401156477,1767989447974,-250.0,0.00030902,2]
[401156478,1767989447984,-250.0,0.00030902,2]
[401156479,1767989447994,-250.0,0.00030902,2]
[401156480,1767989448005,-250.0,0.00030902,2]
[401156481,1767989448016,-5648.54720526,0.00030902,2]
[401156483,1767989844271,155.0,6e-05,2]
[401156530,1767990631654,-1200.0,0.00016899,2]
[401156532,1767990631664,-31.3955753,0.000169,2]
[401156552,1767990637842,-517.42876019,0.000169,2]
[401156555,1767990637854,-356.01301693,0.000169,2]
[401156560,1767990637898,-297.69544249,0.000169,2]
[401156590,1767990639948,-10523.88546093,0.000169,2]
[401157044,1767990644623,-4182.0,0.000169,2]
[401157162,1767990645759,-3060.38336331,0.000169,2]
[401157164,1767990645768,-667.0,0.000169,2]
[401157166,1767990645777,-300.0,0.00016999,2]
[401157168,1767990645787,-21053.27129084,0.00017,2]
[401157170,1767990645796,-420.0,0.00018567,2]
[401157172,1767990645806,-177.0,0.00018999,2]
[401157174,1767990645815,-160.0,0.00019493,2]
[401157176,1767990645824,-1041.66666667,0.00019493,2]
[401157177,1767990645834,-587.0,0.00020279,2]
[401157180,1767990645843,-204.0,0.00020999,2]
[401157182,1767990645853,-823.0,0.00022149,2]
[401157184,1767990645862,-300.0,0.00022466,2]
[401157186,1767990645872,-1033.134063,0.000225,2]
[401157188,1767990645881,-151.0,0.00022913,2]
[401157190,1767990645891,-231.0,0.00022999,2]
[401157192,1767990645902,-450.0,0.00023014,2]
[401157193,1767990645914,-600.0,0.00023562,2]
[401157195,1767990645924,-23906.54289923,0.00024,2]
[401157198,1767990645934,-1735.34301095,0.00024,2]
[401157200,1767990645944,-465.61081915,0.00024,2]
[401157201,1767990645953,-1088.47,0.00024132,10]
[401157203,1767990645962,-907.06,0.00024132,10]
[401157205,1767990645971,-755.88,0.00024132,10]
[401157207,1767990645980,-48579.52005539,0.00024142,2]
[401157209,1767990645989,-490.0,0.00024192,2]
[401157212,1767990645999,-1366.0,0.00024459,2]
[401157214,1767990646008,-628.0,0.00024459,2]
[401157215,1767990646017,-2146.0,0.00024459,2]
[401157218,1767990646027,-417.0,0.00024459,2]
[401157220,1767990646036,-714.0,0.00024459,2]
[401157222,1767990646046,-196.35,0.00024459,2]
[401157223,1767990646056,-151.0,0.00024628,2]
[401157225,1767990646066,-330.9732076,0.00024658,2]
[401157228,1767990646075,-593.96456769,0.000248,2]
[401157230,1767990646085,-5663.90765711,0.000249,2]
[401157232,1767990646094,-321.45375158,0.00024999,2]
[401157233,1767990646104,-500.0,0.00024999,2]
[401157235,1767990646114,-500.0,0.00024999,2]
[401157238,1767990646123,-500.0,0.00024999,2]
[401157257,1767990646295,-500.0,0.00024999,2]
[401157259,1767990646305,-500.0,0.00024999,2]
[401157261,1767990646315,-500.0,0.00024999,2]
[401157263,1767990646324,-500.0,0.00024999,2]
[401157264,1767990646333,-533.03432197,0.00024999,2]
[401157265,1767990646341,-500.0,0.00024999,2]
[401157266,1767990646350,-500.0,0.00024999,2]
[401157267,1767990646359,-500.0,0.00024999,2]
[401157268,1767990646368,-500.0,0.00024999,2]
[401157269,1767990646377,-500.0,0.00024999,2]
[401157270,1767990646386,-500.0,0.00024999,2]
[401157271,1767990646395,-500.0,0.00024999,2]
[401157272,1767990646404,-500.0,0.00024999,2]
[401157273,1767990646414,-500.0,0.00024999,2]
[401157274,1767990646423,-500.0,0.00024999,2]
[401157275,1767990646432,-400.0,0.00024999,2]
[401157276,1767990646441,-500.0,0.00024999,2]
[401157277,1767990646450,-500.0,0.00024999,2]
[401157278,1767990646460,-500.0,0.00024999,2]
[401157279,1767990646471,-500.0,0.00024999,2]
[401157280,1767990646482,-500.0,0.00024999,2]
[401157281,1767990646491,-500.0,0.00024999,2]
[401157282,1767990646500,-66487.19111188,0.00025,2]
[401157283,1767990646509,-151.0,0.00025,7]
[401157284,1767990646519,-151.0,0.00025,7]
[401157285,1767990646528,-151.0,0.00025,7]
[401157286,1767990646536,-151.0,0.00026343,2]
[401157287,1767990646546,-1366.0,0.00027459,2]
[401157288,1767990646555,-628.0,0.00027459,2]
[401157289,1767990646564,-570.003,0.00027459,2]
[401157290,1767990646573,-417.0,0.00027459,2]
[401157291,1767990646582,-714.0,0.00027459,2]
[401157292,1767990646591,-178.0,0.00027459,2]
[401157293,1767990646600,-151.0,0.00028058,3]
[401157294,1767990646609,-5663.90765711,0.00028766,2]
[401157295,1767990646618,-593.96456769,0.00028766,2]
[401157296,1767990646627,-18471.92591978,0.00028776,2]
[401157297,1767990646639,-3776.7347725,0.00028776,2]
[401157298,1767990646650,-2265.9225486,0.00028776,2]
[401157352,1767990767726,500.0,0.00030136,120]
[401157353,1767990767953,500.0,0.00030136,120]
[401157354,1767990768191,500.29878261,0.00030136,120]
[401157403,1767991837986,-261.41625095,0.0001851,2]
[401157404,1767991837997,-210.39131381,0.0001856,2]
[401157405,1767991838147,-300.23493113,0.00018586,2]
[401157406,1767991838163,-1023.73570649,0.00018586,2]
[401157407,1767991838174,-526.80861021,0.00018586,2]
[401157408,1767991838186,-2571.65123819,0.00018586,2]
[401157409,1767991838198,-355.81467659,0.00018586,2]
[401157410,1767991838210,-2426.55443709,0.00018586,2]
[401157411,1767991838221,-15151.66637654,0.00018586,2]
[401157412,1767991838232,-3795.08613463,0.00018586,2]
[401157413,1767991838242,-271.42,0.00018586,2]
[401157414,1767991838254,-2061.54707058,0.00018586,2]
[401157415,1767991838266,-18318.84653086,0.00018586,2]
[401157978,1767991845927,-535.62147182,0.00018586,2]
[401157985,1767991845982,-796.562137,0.00018586,2]
[401158085,1767993032091,-435.65233685,0.00018255,2]
[401158088,1767993032101,-690.0,0.00018255,2]
[401158090,1767993032110,-1052.23982488,0.00018486,2]
[401158092,1767993032121,-7347.68192802,0.00018486,2]
[401158094,1767993032132,-19142.55704503,0.00018486,2]
[401158096,1767993032142,-1125.97591378,0.00018486,2]
[401158179,1767993038403,-1894.3840314,0.00018486,2]
[401158181,1767993038415,-3203.37834495,0.00018486,2]
[401158813,1767993046193,-2332.72239405,0.00018486,2]
[401158815,1767993046204,-1041.66666667,0.0001914,2]
[401158817,1767993046214,-300.0,0.00020758,2]
[401158819,1767993046223,-300.0,0.00020758,2]
[401158821,1767993046233,-1200.0,0.00020758,2]
[401158823,1767993046244,-746.82268226,0.00020759,2]
[401158825,1767993046253,-2987.29072902,0.00020759,2]
[401158827,1767993046262,-2271.85795303,0.00020759,2]
[401158860,1767993123077,500.0,0.00030136,120]
[401158861,1767993134177,503.72330638,0.00030136,120]
[401158862,1767993138835,500.0,0.00030136,120]
[401158863,1767993153701,504.0134925,0.00030136,120]
[401158864,1767993155755,517.06,0.00030136,120]
[401158865,1767993165377,500.0,0.00030136,120]
[401158866,1767993166307,500.0,0.00030136,120]
[401158867,1767993167492,500.0,0.00030136,120]
[401158868,1767993169286,500.0,0.00030136,120]
[401158869,1767993171092,500.0,0.00030136,120]
[401158870,1767993177116,518.65719282,0.00030136,120]
[401158871,1767993178936,503.0674873,0.00030136,120]
[401158872,1767993182882,500.0,0.00030136,120]
[401158873,1767993183123,152.06,0.00030136,120]
[401158874,1767993224476,517.28,0.00030136,120]
[401158875,1767993230917,500.0,0.00030136,120]
[401158876,1767993239704,500.0,0.00030136,120]
[401158877,1767993249045,292.0,0.00030136,120]
[401158878,1767993250740,500.0,0.00030136,120]
[401158879,1767993251779,500.0,0.00030136,120]
[401158880,1767993264285,502.03807185,0.00030136,120]
[401158881,1767993276469,515.34101632,0.00030136,120]
[401158882,1767993276498,169.65525428,0.00030136,120]
[401158883,1767993283075,277.17711441,0.00030136,120]
[401158885,1767993299079,500.0,0.00030136,120]
[401158886,1767993302745,240.85881891,0.00030136,120]
[401158887,1767993304258,508.25674776,0.00030136,120]
[401158888,1767993311675,500.0,0.00030136,120]
[401158889,1767993313077,500.0,0.00030136,120]
[401158890,1767993320695,251.16527309,0.00030136,120]
[401158891,1767993333812,500.0,0.00030136,120]
[401158892,1767993335644,500.0,0.00030136,120]
[401158894,1767993358427,500.0,0.00030136,120]
[401158895,1767993360232,500.0,0.00030136,120]
[401158896,1767993428711,519.55024023,0.00030136,120]
[401158897,1767993432432,514.03234991,0.00030136,120]
[401158899,1767993459058,500.0,0.00030136,120]
[401158900,1767993459345,223.57,0.00030136,120]
[401158901,1767993460799,502.86478898,0.00030136,120]
[401158902,1767993465694,500.0,0.00030136,120]
[401158903,1767993470850,501.46892349,0.00030136,120]
[401158904,1767993472709,506.86710627,0.00030136,120]
[401158905,1767993480504,499.10121192,0.00030136,120]
[401158914,1767993645293,500.0,0.00030136,120]
[401158915,1767993651719,500.0,0.00030136,120]
[401158916,1767993653984,500.0,0.00030136,120]
[401158917,1767993680636,500.0,0.00030136,120]
[401158918,1767993761878,508.69947642,0.00030136,120]
[401158919,1767993772591,500.0,0.00030136,120]
[401158920,1767993778155,500.0,0.00030136,120]
[401158921,1767993788317,152.72112113,0.00024886,120]
[401158922,1767993792536,500.0,0.00030136,120]
[401158923,1767993800535,508.29151892,0.00030136,120]
[401158924,1767993802425,465.43846584,0.00030136,120]
[401158925,1767993804235,221.96185201,0.00030136,120]
[401158926,1767993812138,500.0,0.00030136,120]
[401158927,1767993818027,560.28659315,0.00030136,120]
[401158929,1767993820486,501.52061216,0.00030136,120]
[401158930,1767993822265,508.39551975,0.00030136,120]
[401158931,1767993829217,286.65264925,0.00030136,120]
[401158932,1767993835410,566.87335482,0.00030136,120]
[401158933,1767993837347,505.2431681,0.00030136,120]
[401158934,1767993838024,500.0,0.00030136,120]
[401158935,1767993841556,607.40648212,0.00030136,120]
[401158936,1767993844135,355.80341923,0.00030136,120]
[401158937,1767993847061,504.17772459,0.00030136,120]
[401158938,1767993855038,501.0699067,0.00030136,120]
[401158939,1767993856451,500.0,0.00030136,120]
[401158940,1767993859980,500.0,0.00030136,120]
[401158941,1767993867932,503.33181327,0.00030136,120]
[401158942,1767993873527,500.0,0.00030136,120]
[401158943,1767993878729,488.45658605,0.00030136,120]
[401158952,1767994008232,501.37896087,0.00030136,120]
[401158953,1767994011842,500.0,0.00030136,120]
[401158954,1767994030148,500.0,0.00030136,120]
[401158955,1767994033836,500.0,0.00030136,120]
[401158956,1767994035745,501.5585873,0.00030136,120]
[401158961,1767994051109,500.0,0.00030136,120]
[401158972,1767994134277,500.0,0.00030136,120]
[401158973,1767994182012,500.0,0.00030136,120]
[401158974,1767994185621,1590.48,0.00030136,120]
[401158975,1767994190077,500.0,0.00030136,120]
[401159013,1767994232386,-300.0,0.00013272,2]
[401159014,1767994232397,-1200.0,0.00013272,2]
[401159015,1767994232407,-615.02585928,0.00013273,2]
[401159016,1767994232428,-500.0,0.00013273,2]
[401159017,1767994232442,-500.0,0.00013273,2]
[401159018,1767994232452,-500.0,0.00013273,2]
[401159019,1767994232462,-500.0,0.00013273,2]
[401159021,1767994232472,-632.666168,0.00013273,2]
[401159022,1767994232482,-232.92202695,0.00013273,2]
[401159023,1767994232495,-394.52826302,0.00013273,2]
[401159024,1767994232505,-499.1084603,0.00013273,2]
[401159025,1767994232515,-500.0,0.00013273,2]
[401159026,1767994232527,-500.0,0.00013273,2]
[401159027,1767994232538,-500.0,0.00013273,2]
[401159028,1767994232548,-500.0,0.00013273,2]
[401159029,1767994232559,-500.0,0.00013273,2]
[401159030,1767994232569,-500.0,0.00013273,2]
[401159031,1767994232580,-43736.81907929,0.00013273,2]
[401159032,1767994232590,-500.0,0.00013273,2]
[401159033,1767994232600,-500.0,0.00013273,2]
[401159034,1767994232612,-500.0,0.00013273,2]
[401159035,1767994232622,-451.52692778,0.00013273,2]
[401159036,1767994232632,-500.39540392,0.00013273,2]
[401159037,1767994232642,-500.0,0.00013273,2]
[401159038,1767994232652,-423.32811707,0.00013273,2]
[401159039,1767994232662,-500.0,0.00013273,2]
[401159040,1767994232672,-500.0,0.00013273,2]
[401159041,1767994232682,-500.0,0.00013273,2]
[401159042,1767994232692,-500.0,0.00013273,2]
[401159043,1767994232702,-500.0,0.00013273,2]
[401159044,1767994232712,-500.0,0.00013273,2]
[401159045,1767994232722,-500.0,0.00013273,2]
[401159046,1767994232732,-500.0,0.00013273,2]
[401159047,1767994232742,-500.0,0.00013273,2]
[401159048,1767994232752,-500.0,0.00013273,2]
[401159049,1767994232762,-500.0,0.00013273,2]
[401159050,1767994232771,-500.0,0.00013273,2]
[401159051,1767994232781,-500.0,0.00013273,2]
[401159052,1767994232791,-500.0,0.00013273,2]
[401159053,1767994232801,-500.0,0.00013273,2]
[401159054,1767994232811,-500.0,0.00013425,2]
[401159055,1767994232821,-275.24518356,0.00013425,2]
[401159056,1767994232832,-500.0,0.00013425,2]
[401159057,1767994232842,-500.0,0.00013425,2]
[401159058,1767994233060,-172.11828201,0.00013425,2]
[401159059,1767994233070,-500.0,0.00013562,2]
[401159060,1767994233081,-500.0,0.00013562,2]
[401159061,1767994233091,-500.0,0.00013562,2]
[401159062,1767994233100,-300.0,0.00013673,2]
[401159063,1767994233110,-500.0,0.00013698,2]
[401159064,1767994233119,-500.0,0.00013698,2]
[401159065,1767994233128,-500.0,0.00013698,2]
[401159066,1767994233139,-388.58715078,0.00013698,2]
[401159067,1767994233148,-500.0,0.00013698,2]
[401159068,1767994233157,-500.0,0.00013698,2]
[401159069,1767994233166,-500.0,0.00013698,2]
[401159070,1767994233176,-500.0,0.00013698,2]
[401159071,1767994233185,-500.0,0.00013698,2]
[401159072,1767994233195,-500.0,0.00013698,2]
[401159073,1767994233205,-500.0,0.00013698,2]
[401159074,1767994233216,-287.94099148,0.00013698,2]
[401159075,1767994233227,-464.27525337,0.00013698,2]
[401159076,1767994233236,-500.0,0.00013698,2]
[401159077,1767994233246,-500.0,0.00013698,2]
[401159078,1767994233255,-500.0,0.00013698,2]
[401159079,1767994233266,-500.0,0.00013698,2]
[401159080,1767994233275,-500.0,0.00013698,2]
[401159081,1767994233285,-500.0,0.00013698,2]
[401159082,1767994233295,-500.0,0.00013698,2]
[401159083,1767994233304,-500.0,0.00013698,2]
[401159084,1767994233314,-500.0,0.00013698,2]
[401159085,1767994233324,-500.0,0.00013698,2]
[401159086,1767994233333,-500.0,0.00013698,2]
[401159087,1767994233343,-500.0,0.00013698,2]
[401159088,1767994233352,-500.0,0.00013698,2]
[401159089,1767994233362,-500.0,0.00013698,2]
[401159090,1767994233375,-500.0,0.00013698,2]
[401159091,1767994233384,-311.92077698,0.00013698,2]
[401159092,1767994233394,-500.0,0.00013698,2]
[401159093,1767994233403,-500.0,0.00013698,2]
[401159094,1767994233413,-500.0,0.00013698,2]
[401159095,1767994233423,-500.0,0.00013698,2]
[401159096,1767994233431,-500.0,0.00013698,2]
[401159097,1767994233441,-500.0,0.00013698,2]
[401159098,1767994233450,-500.0,0.00013698,2]
[401159099,1767994233459,-500.0,0.00013698,2]
[401159100,1767994233468,-500.0,0.00013698,2]
[401159101,1767994233477,-500.0,0.00013698,2]
[401159102,1767994233487,-500.0,0.00013698,2]
[401159103,1767994233501,-500.0,0.00013698,2]
[401159104,1767994233510,-500.0,0.00013698,2]
[401159105,1767994233519,-500.0,0.00013698,2]
[401159106,1767994233530,-500.0,0.00013698,2]
[401159107,1767994233540,-500.0,0.00013698,2]
[401159108,1767994233549,-500.0,0.00013698,2]
[401159109,1767994233558,-500.0,0.00013698,2]
[401159110,1767994233568,-500.0,0.00013698,2]
[401159111,1767994233578,-500.0,0.00013698,2]
[401159112,1767994233587,-500.0,0.00013698,2]
[401159113,1767994233596,-500.0,0.00013698,2]
[401159114,1767994233606,-500.0,0.00013698,2]
[401159115,1767994233615,-500.0,0.00013698,2]
[401159116,1767994233625,-500.0,0.00013698,2]
[401159117,1767994233635,-500.0,0.00013698,2]
[401159118,1767994233645,-500.0,0.00013698,2]
[401159119,1767994233654,-500.0,0.00013698,2]
[401159120,1767994233663,-500.0,0.00013698,2]
[401159121,1767994233674,-500.0,0.00013698,2]
[401159122,1767994233683,-500.0,0.00013698,2]
[401159123,1767994233692,-340.58528386,0.00013698,2]
[401159124,1767994233702,-500.0,0.00013698,2]
[401159125,1767994233715,-500.0,0.00013698,2]
[401159126,1767994233724,-500.0,0.00013698,2]
[401159127,1767994233735,-351.92668574,0.00013698,2]
[401159128,1767994233744,-500.0,0.00013698,2]
[401159129,1767994233753,-500.0,0.00013698,2]
[401159130,1767994233763,-500.0,0.00013698,2]
[401159131,1767994233773,-500.0,0.00013698,2]
[401159132,1767994233783,-500.0,0.00013698,2]
[401159133,1767994233793,-500.0,0.00013698,2]
[401159134,1767994233803,-613.13930364,0.00013698,2]
[401159135,1767994233813,-500.0,0.00013698,2]
[401159136,1767994233823,-500.0,0.00013698,2]
[401159137,1767994233833,-500.0,0.00013698,2]
[401159138,1767994233843,-500.0,0.00013698,2]
[401159139,1767994233853,-1000.0,0.00013699,2]
[401159140,1767994233863,-500.0,0.00013699,2]
[401159141,1767994233873,-500.0,0.00013699,2]
[401159142,1767994233882,-152.05252624,0.00013699,2]
[401159143,1767994233892,-158.46822289,0.00013699,2]
[401159144,1767994233902,-500.0,0.00013699,2]
[401159145,1767994233911,-500.0,0.00013699,2]
[401159146,1767994233921,-500.0,0.00013699,2]
[401159147,1767994233930,-500.0,0.00013699,2]
[401159148,1767994233940,-500.0,0.00013699,2]
[401159149,1767994233949,-500.0,0.00013699,2]
[401159150,1767994233959,-552.90234435,0.00013699,2]
[401159151,1767994233968,-500.0,0.00013699,2]
[401159152,1767994233977,-224.24945607,0.00013699,2]
[401159153,1767994233987,-500.0,0.00013699,2]
[401159154,1767994233996,-200.0,0.00013699,2]
[401159155,1767994234005,-200.0,0.00013699,2]
[401159156,1767994234014,-151.0,0.00013819,2]
[401159157,1767994234023,-151.0,0.00013819,2]
[401159158,1767994234032,-151.0,0.00013819,2]
[401159159,1767994234041,-151.0,0.00013819,2]
[401159160,1767994234051,-151.0,0.00013819,2]
[401159161,1767994234060,-500.0,0.0001382,2]
[401159162,1767994234070,-500.0,0.0001382,2]
[401159163,1767994234081,-500.0,0.00013821,2]
[401159164,1767994234090,-500.0,0.00013821,2]
[401159165,1767994234100,-897.03812729,0.00013821,2]
[401159166,1767994234109,-1000.0,0.00013821,2]
[401159167,1767994234119,-500.0,0.00013821,2]
[401159168,1767994234129,-500.0,0.00013821,2]
[401159169,1767994234139,-500.0,0.00013821,2]
[401159170,1767994234149,-195.85769653,0.00013821,2]
[401159171,1767994234158,-500.0,0.00013821,2]
[401159172,1767994234168,-500.0,0.00013821,2]
[401159173,1767994234178,-500.0,0.00013821,2]
[401159174,1767994234187,-500.0,0.00013821,2]
[401159175,1767994234197,-500.0,0.00013821,2]
[401159176,1767994234207,-500.0,0.00013821,2]
[401159177,1767994234216,-1000.0,0.00013821,2]
[401159178,1767994234226,-462.45858128,0.00013821,2]
[401159179,1767994238341,-37.54141872,0.00013821,2]
[401159180,1767994238352,-431.48440449,0.00013821,2]
[401159181,1767994238364,-1000.0,0.00013821,2]
[401159182,1767994238374,-151.0,0.00013821,2]
[401159183,1767994238384,-151.0,0.00013821,2]
[401159184,1767994238395,-151.0,0.00013821,2]
[401159185,1767994238405,-500.0,0.00013836,2]
[401159186,1767994238415,-500.0,0.00013836,2]
[401159187,1767994238426,-200.0,0.00013973,2]
[401159188,1767994238436,-500.0,0.00013973,2]
[401159189,1767994238446,-500.0,0.00013973,2]
[401159190,1767994238455,-500.0,0.0001411,2]
[401159191,1767994238466,-500.0,0.0001411,2]
[401159192,1767994238476,-244.50886191,0.0001411,2]
[401159193,1767994238485,-600.0,0.00014221,2]
[401159194,1767994238499,-314.76790542,0.00014247,2]
[401159195,1767994238508,-1000.0,0.00014247,2]
[401159196,1767994238517,-1000.0,0.00014247,2]
[401159197,1767994238527,-1136.08782837,0.00014247,2]
[401159198,1767994238538,-356.42961226,0.00014247,2]
[401159199,1767994238551,-643.57038774,0.00014247,2]
[401159200,1767994238560,-502.70184396,0.00014247,2]
[401159201,1767994238572,-500.0,0.00014247,2]
[401159202,1767994238583,-500.0,0.00014247,2]
[401159203,1767994238593,-151.0,0.00014247,2]
[401159204,1767994238603,-252.3598,0.00014247,2]
[401159205,1767994238612,-300.013436,0.00014368,2]
[401159206,1767994238622,-1500.0,0.00014368,2]
[401159207,1767994238632,-110.31094869,0.00014368,2]
[401159208,1767994238644,-394.48465797,0.00014368,2]
[401159209,1767994238656,-645.89790558,0.00014368,2]
[401159210,1767994238667,-349.30648776,0.00014368,2]
[401159211,1767994238677,-1500.0,0.00014368,2]
[401159212,1767994238686,-500.0,0.00014384,2]
[401159213,1767994238696,-500.0,0.00014384,2]
[401159214,1767994238706,-294.15202992,0.00014521,2]
[401159215,1767994238716,-419.28956995,0.00014521,2]
[401159216,1767994238725,-500.0,0.00014521,2]
[401159217,1767994238734,-319.80189127,0.00014551,2]
[401159218,1767994238746,-100.19810873,0.00014551,2]
[401159219,1767994238755,-1680.0,0.00014599,2]
[401159220,1767994238765,-352.21493598,0.00014658,2]
[401159221,1767994238776,-147.78506402,0.00014658,2]
[401159222,1767994238785,-900.0,0.00014768,2]
[401159223,1767994238795,-424.36354812,0.00014795,2]
[401159284,1767994240640,-75.63645188,0.00014795,2]
[401159286,1767994240649,-300.0,0.00014932,2]
[401159288,1767994240658,-284.685764,0.00015068,2]
[401159290,1767994240668,-165.67250074,0.00015272,2]
[401159292,1767994240679,-65.43819233,0.00015272,2]
[401159294,1767994240689,-300.0,0.00015953,2]
[401159296,1767994240699,-151.0,0.00016059,2]
[401159298,1767994240708,-1200.0,0.00016059,2]
[401159300,1767994240717,-556.05928211,0.0001629,2]
[401159302,1767994240727,-151.0,0.00016438,2]
[401159304,1767994240736,-3962.02491933,0.00016776,2]
[401159305,1767994240748,-1037.97508067,0.00016776,2]
[401159307,1767994240757,-11322.90234016,0.00016778,2]
[401159774,1767994293183,501.14981112,0.00030136,120]
[401159775,1767994295075,313.29370636,0.00030136,120]
[401159776,1767994298449,303.913328,0.00030136,120]
[401159777,1767994299295,563.20504274,0.00030136,120]
[401159778,1767994305428,514.72498443,0.00030136,120]
[401159779,1767994310691,508.24763157,0.00030136,120]
[401159780,1767994313178,500.0,0.00030136,120]
[401159781,1767994321131,343.866132,0.00030136,120]
[401159782,1767994326738,166.522809,0.00030136,120]
[401159784,1767994334457,504.18008309,0.00030136,120]
[401159786,1767994351923,503.25407505,0.00030136,120]
[401159787,1767994415699,259.2551717,0.00030136,120]
[401159788,1767994417484,500.0,0.00030136,120]
[401159789,1767994421022,512.60819374,0.00030136,120]
[401159790,1767994422844,503.76192749,0.00030136,120]
[401159791,1767994430545,501.05729992,0.00030136,120]
[401159792,1767994432292,504.87692084,0.00030136,120]
[401159793,1767994432386,500.0,0.00030136,120]
[401159794,1767994434185,500.0,0.00030136,120]
[401159795,1767994436019,588.30705667,0.00030136,120]
[401159796,1767994437734,501.46019374,0.00030136,120]
[401159797,1767994439591,518.61971692,0.00030136,120]
[401159798,1767994446869,504.67096452,0.00030136,120]
[401159799,1767994448468,500.0,0.00030136,120]
[401159800,1767994448761,500.0,0.00030136,120]
[401159801,1767994448991,500.0,0.00030136,120]
[401159802,1767994449264,500.0,0.00030136,120]
[401159803,1767994449490,500.0,0.00030136,120]
[401159804,1767994449718,500.0,0.00030136,120]
[401159805,1767994449952,639.69,0.00030136,120]
[401159806,1767994450494,500.0,0.00030136,120]
[401159807,1767994457302,501.64408699,0.00030136,120]
[401159808,1767994462279,500.0,0.00030136,120]
[401159809,1767994469682,593.58007855,0.00030136,120]
[401159810,1767994471443,500.0,0.00030136,120]
[401159811,1767994473138,500.0,0.00030136,120]
[401159812,1767994473337,553.72127767,0.00030136,120]
[401159813,1767994474864,500.0,0.00030136,120]
[401159814,1767994475215,500.0,0.00030136,120]
[401159816,1767994611308,518.39531862,0.00030136,120]
[401159817,1767994640086,500.0,0.00030136,120]
[401159818,1767994644061,336.6113298,0.00030136,120]
[401159819,1767994661304,500.0,0.00030136,120]
[401159820,1767994680039,151.17,5.994e-05,2]
[401159821,1767994681490,155.0,6e-05,2]